Cogmind - Beta 9.6 @@@ ROGUE MODE // 2020.04.20 @ 20:52:59 // AFD2020/Player2 Player: Stryker Result: Core destroyed Performance ------------- Evolutions (6) 3000 Regions Visited (18) 3600 Robots Destroyed (158) 790 Value Destroyed (6478) 6478 Prototype IDs (44) 880 Alien Tech Used (0) 0 Bonus (6090) 6090 TOTAL SCORE: 20838 Bonus ------- High Alert Combat Kills 635 Follower Combat Kills 6611 Entered Garrisons 200 Used RIF Installer 500 Met Data Miner 300 Friendly Fire -2156 Cogmind --------- Core Integrity 0/1150 Matter 41/300 Energy 350/350 System Corruption 2% Temperature Cool (0) Movement Treading (180) Ox1 Location -4/Factory Parts ------- > --- POWER (1) -------- Quantum Reactor > --- PROPULSION (2) --- Centrium Heavy Treads > --- UTILITY (14) ----- Advanced Cooling System High-capacity Storage Unit High-capacity Storage Unit Experimental Signal Interpreter Improved Medium Armor Plating Improved Medium Armor Plating Centrium Medium Armor Plating Centrium Medium Armor Plating Light Regenerative Plating Hacking Suite Hacking Suite Improved Hacking Suite Improved Hacking Suite Advanced Hacking Suite > --- WEAPON (2) ------- KE Penetrator KE Penetrator > --- INVENTORY (20) --- Quantum Reactor Centrium Heavy Treads Centrium Heavy Treads High-capacity Storage Unit Experimental Sensor Array Centrium Medium Armor Plating Medium Insulated Plating Improved Thermal Shield System Shield Improved System Backup Module Recalibrator Tesla Rifle Phase Gun Railgun Improved KE Penetrator Improved Grenade Launcher Phasing Sabre Peak State ------------ > --- POWER ------------ Quantum Reactor > --- PROPULSION ------- Centrium Heavy Treads > --- UTILITY ---------- High-capacity Storage Unit High-capacity Storage Unit Experimental Signal Interpreter Improved Medium Armor Plating Improved Medium Armor Plating Centrium Medium Armor Plating Centrium Medium Armor Plating Medium Insulated Plating Light Regenerative Plating Hacking Suite Hacking Suite Improved Hacking Suite Improved Hacking Suite Advanced Hacking Suite > --- WEAPON ----------- Tesla Rifle Improved KE Penetrator > --- INVENTORY -------- Quantum Reactor Centrium Heavy Treads Centrium Heavy Treads Advanced Cooling System High-capacity Storage Unit Experimental Sensor Array Improved Medium Armor Plating Centrium Medium Armor Plating Medium Insulated Plating Improved Thermal Shield Improved System Backup Module Recalibrator Phase Gun KE Penetrator KE Penetrator Railgun Improved Grenade Launcher Phasing Sabre [Rating: 119] Favorites ----------- Power Enhanced Nuclear Core Engine Improved Deuterium Engine Power Core Enhanced Nuclear Core Reactor Quantum Reactor Propulsion Medium Treads Treads Medium Treads Leg Aluminum Leg Wheel Armored Wheel Utility Hacking Suite Device Long-range Sensor Array Storage High-capacity Storage Unit Processor Advanced Signal Interpreter Hackware Hacking Suite Protection Improved Medium Armor Plating Weapon Improved Assault Rifle Energy Gun Tesla Rifle Energy Cannon Improved EM Pulse Cannon Ballistic Gun Improved Assault Rifle Ballistic Cannon Assault Cannon Launcher Mini Grenade Launcher Special Weapon Remote Datajack Impact Weapon Heavy Hammer Slashing Weapon Makeshift Axe Build | -11 -10 -9 -8 -8 -8 -7 -7 -7 -6 -6 -6 -6 -5 -5 -5 -5 -5 -4 ------- Run | Scr Mat Mat Mat Gar Mat Fac Low Low Fac Low Low Dat Pro Fac Ext Cet Arc Fac Slots Evolved 12 | . . 2 2 . . 2 . . 2 . . . . 2 . . . 2 Power . | . . . . . . . . . . . . . . . . . . . Propulsion . | . . . . . . . . . . . . . . . . . . . Utility 12 | . . 2 2 . . 2 . . 2 . . . . 2 . . . 2 Weapon . | . . . . . . . . . . . . . . . . . . . Parts Attached 304 | 3 6 12 34 7 5 24 12 8 20 8 7 1 18 49 38 8 1 43 Power 15 | . 1 2 4 1 1 . 2 . . . 2 . . 1 . 1 . . Engine 8 | . 1 2 3 1 . . . . . . 1 . . . . . . . Core 5 | . . . 1 . 1 . 2 . . . . . . 1 . . . . Reactor 2 | . . . . . . . . . . . 1 . . . . 1 . . Propulsion 20 | 2 . 5 . 3 . 2 . 1 1 . . . . 2 3 1 . . Treads 15 | 1 . 4 . 1 . 1 . 1 1 . . . . 2 3 1 . . Leg . | . . . . . . . . . . . . . . . . . . . Wheel 5 | 1 . 1 . 2 . 1 . . . . . . . . . . . . Hover . | . . . . . . . . . . . . . . . . . . . Flight . | . . . . . . . . . . . . . . . . . . . Utility 180 | 1 4 2 20 1 2 15 6 4 13 6 4 1 13 33 23 2 1 29 Device 70 | . . 1 7 . 1 4 3 2 4 3 2 . 7 13 9 1 . 13 Storage 12 | 1 4 . 1 . 1 2 . . . . . . . 3 . . . . Processor 5 | . . 1 2 . . . . . . . . . . 1 . . . 1 Hackware 12 | . . . 3 . . 3 . . 2 . . . . 3 . . . 1 Protection 81 | . . . 7 1 . 6 3 2 7 3 2 1 6 13 14 1 1 14 Artifact . | . . . . . . . . . . . . . . . . . . . Weapon 89 | . 1 3 10 2 2 7 4 3 6 2 1 . 5 13 12 4 . 14 Energy Gun 14 | . . 3 2 1 . . . . 1 . . . . 2 1 3 . 1 Energy Cannon 10 | . . . 2 . 2 1 . 2 . 1 . . 1 . 1 . . . Ballistic Gun 32 | . 1 . 3 . . 2 2 . 1 . 1 . 2 5 6 1 . 8 Ballistic Cannon 5 | . . . . . . 2 . . 1 . . . . 2 . . . . Launcher 6 | . . . . 1 . . . . 1 1 . . 2 . 1 . . . Special Weapon 3 | . . . . . . . . . . . . . . . 3 . . . Impact Weapon 1 | . . . 1 . . . . . . . . . . . . . . . Slashing Weapon 18 | . . . 2 . . 2 2 1 2 . . . . 4 . . . 5 Piercing Weapon . | . . . . . . . . . . . . . . . . . . . Special Melee Weapon . | . . . . . . . . . . . . . . . . . . . Unidentified Prototypes 12 | . . 2 1 . 1 . . . 1 . . . . 2 . 3 . 2 Parts Lost 33 | . 3 3 5 . . 1 . 3 2 . 2 . 1 3 7 . . 3 Power 3 | . 1 . 2 . . . . . . . . . . . . . . . Propulsion 9 | . . 3 . . . . . 1 1 . . . . 2 2 . . . Utility 11 | . . . 1 . . 1 . 1 1 . 1 . . 1 3 . . 2 Weapon 10 | . 2 . 2 . . . . 1 . . 1 . 1 . 2 . . 1 Highest Loss Streak 3 | . 3 2 1 . . 1 . 1 2 . 1 . 1 2 3 . . 1 Average Slot Usage (%) 97 | . 96 96 98 100 100 99 100 99 94 100 99 100 100 97 97 95 94 93 Engine 2 | . 13 11 8 9 . . . . . . 1 6 6 2 . . . . Core 3 | . . . . . 8 7 7 7 6 6 3 . . 2 5 1 . . Treads 9 | . 14 11 9 15 9 7 7 7 12 13 13 13 13 11 10 6 5 5 Wheel 3 | . 14 10 9 2 9 6 7 6 . . . . . . . . . . Device 4 | . . 10 3 . 6 4 4 5 5 4 3 6 4 3 3 5 5 8 Storage 13 | . 28 22 18 18 18 15 15 15 13 13 13 13 13 11 11 11 11 10 Processor 6 | . . 8 10 9 9 7 7 7 6 6 6 6 6 5 5 5 5 5 Hackware 24 | . . . 14 18 18 26 30 28 20 26 26 26 26 34 29 29 29 25 Protection 10 | . . . 5 9 2 5 2 2 15 15 15 13 14 10 17 16 17 22 Energy Gun 2 | . 9 18 9 10 2 . . . . . . . . . . 5 5 3 Energy Cannon 2 | . . . 4 . 15 9 1 1 1 4 6 6 2 . . . . . Ballistic Gun 5 | . 15 3 3 . . 5 6 12 4 6 6 6 8 5 6 5 5 5 Ballistic Cannon 1 | . . . . . . . 5 . 1 . . . . 4 . . . . Naked Turns . | . . . . . . . . . . . . . . . . . . . Heaviest Build 132 | 15 39 44 77 73 80 94 90 100 102 101 106 106 107 115 106 111 111 132 Greatest Support 80 | 20 16 40 16 40 12 12 12 56 56 56 56 56 56 56 48 80 80 80 Greatest Overweight (x) 29 | . 2 2 4 5 6 29 7 8 1 1 1 1 1 3 5 2 1 1 Average Overweight (x) 2 | . 1 1 3 1 5 6 6 5 1 1 1 1 1 1 1 1 1 1 Largest Inventory Capacity 20 | 8 16 16 18 18 18 20 20 20 20 20 20 20 20 20 20 20 20 20 Average Capacity 19 | 6 14 16 17 18 18 19 20 20 20 20 20 20 20 20 20 20 20 20 Most Carried 20 | 6 10 16 18 18 18 20 20 20 20 20 20 20 20 20 20 20 20 20 Average Carried 18 | 5 8 14 16 18 17 18 19 19 17 19 19 20 19 18 19 19 20 19 Final Capacity 20 | 8 16 16 18 18 18 20 20 20 20 20 20 20 20 20 20 20 20 20 Final Carried 20 | 6 9 16 18 18 18 20 20 17 20 20 20 20 19 20 20 20 20 19 Class Distribution -------------------- 72% | Hacker-Mutant 16% | Wizard-Mutant 10% | Mutant Dominant Class ---------------- Mutant | -10/Materials Mutant | -9/Materials Hacker-Mutant | -8/Materials Hacker-Mutant | -8/Garrison Hacker-Mutant | -8/Materials Hacker-Mutant | -7/Factory Hacker-Mutant | -7/Lower Caves Hacker-Mutant | -7/Lower Caves Hacker-Mutant | -6/Factory Hacker-Mutant | -6/Lower Caves Hacker-Mutant | -6/Lower Caves Hacker-Mutant | -6/Data Miner Hacker-Mutant | -5/Proximity Caves Wizard-Mutant | -5/Factory Hacker-Mutant | -5/Extension Hacker-Mutant | -5/Cetus Hacker-Mutant | -5/Archives Hacker-Mutant | -4/Factory Resources | -11 -10 -9 -8 -8 -8 -7 -7 -7 -6 -6 -6 -6 -5 -5 -5 -5 -5 -4 ----------- Run | Scr Mat Mat Mat Gar Mat Fac Low Low Fac Low Low Dat Pro Fac Ext Cet Arc Fac Matter Collected 5881 | 235 73 440 387 131 74 301 228 136 89 269 151 . 314 1164 984 142 54 709 Remotely . | . . . . . . . . . . . . . . . . . . . Salvage Created 7355 | 110 175 324 830 325 313 388 141 214 95 238 429 . 218 1068 965 117 174 1231 Parts 344 | 4 14 18 44 17 12 14 6 8 8 2 22 . 12 49 44 5 10 55 Haulers Intercepted 11 | . . 2 2 . 4 1 . . . . . . . 1 . . . 1 Recyclers Shooed 4 | . . . . . . . . . . . . . . 3 . . . 1 Parts Field Recycled . | . . . . . . . . . . . . . . . . . . . Retrieved Matter . | . . . . . . . . . . . . . . . . . . . Parts Self-Destructed 85 | . . . . . . . 10 12 . 1 23 . 39 . . . . . Prevented 16 | . . . . . . . . 2 . . 9 . 5 . . . . . Kills | -11 -10 -9 -8 -8 -8 -7 -7 -7 -6 -6 -6 -6 -5 -5 -5 -5 -5 -4 ------- Run | Scr Mat Mat Mat Gar Mat Fac Low Low Fac Low Low Dat Pro Fac Ext Cet Arc Fac Combat Hostiles Destroyed 114 | . 4 6 15 9 2 6 4 4 2 2 7 . 8 15 11 2 2 15 Melee 1 | . . . . . . . . . . . . . . . . . . 1 Guns 64 | . 4 6 10 1 . . 2 2 1 . . . 3 9 8 2 2 14 Cannons 27 | . . . 3 . 1 5 2 2 . . 7 . 1 6 . . . . AOE 21 | . . . 2 8 1 . . . 1 2 . . 4 . 3 . . . Classes Destroyed 16 | 2 1 4 4 . 1 . 1 . . . . . 1 1 . . . 1 Worker 5 | . . 1 . . . . . . . . . . . 2 . . . 2 Builder 9 | . . 1 2 . . . . . 1 . . . . . 3 . . 2 Tunneler 2 | 1 . . . . . . . . . . . . . 1 . . . . Hauler 11 | . . 2 2 . 4 1 . . . . . . . 1 . . . 1 Recycler 4 | 1 . . . . . . . . . . . . . 1 2 . . . Operator 5 | . . . 1 . 1 . . . 1 . . . . . . . . 2 Watcher 7 | . . . 2 . . 1 . . . . . . . . 1 . . 3 Swarmer 30 | . . 4 2 4 . 1 1 . 1 2 2 . 7 . 3 . . 3 Saboteur 1 | . . . . . . . . . . . . . . . . . . 1 Grunt 48 | . 4 2 8 5 1 4 1 3 . . 2 . . 6 4 1 . 7 Brawler 4 | . . . 1 . . . 1 . . . . . . . . 1 . 1 Duelist 3 | . . . . . 1 . . 1 . . 1 . . . . . . . Sentry 13 | . . . 4 . . 1 . . . . 2 . . 2 2 . 2 . Hunter 5 | . . . . . . . . . . . . . 1 1 1 . . 2 Programmer 8 | . . . . . . . 1 . 1 . . . . 5 . . . 1 Behemoth 2 | . . . . . . . . . . . . . . 1 1 . . . Guerrilla 1 | . . . . . . . . . . . . . . . 1 . . . Best Kill Streak 6 | 2 2 3 3 6 2 3 2 2 1 2 2 . 3 4 4 2 1 4 Combat Bots Only 6 | . 2 3 2 6 1 3 2 2 1 2 2 . 3 3 4 2 1 4 Max Kills in Single Turn 4 | 1 1 1 2 4 1 1 1 1 1 2 1 . 2 2 2 1 1 2 Gunslinging 1 | . . . 1 . . . . . . . . . . . 1 . . . Exploded 4 | . . . 1 4 1 . . . 1 2 . . 2 . 2 . . . Melee 1 | . . . . . . . . . . . . . . . . . . 1 Uniques/NPCs Destroyed . | . . . . . . . . . . . . . . . . . . . Combat | -11 -10 -9 -8 -8 -8 -7 -7 -7 -6 -6 -6 -6 -5 -5 -5 -5 -5 -4 -------- Run | Scr Mat Mat Mat Gar Mat Fac Low Low Fac Low Low Dat Pro Fac Ext Cet Arc Fac Damage Taken 9775 | . 360 621 838 441 115 597 139 178 534 107 310 . 667 1134 1839 78 90 1727 Core 1022 | . 16 138 123 68 15 111 10 50 54 . 61 . 85 141 75 32 . 43 Absorbed by Shields 136 | . . . . . . . . . . . . . . . . 48 88 . Reduced by Siege Mode 36 | . . . . . . . . . . . . . . . . . . 36 Core Remaining (%) 51 | 100 68 54 . . 44 . . 47 . . . . 44 . . . 1 . Volleys Fired 553 | 5 28 28 63 39 13 26 13 17 8 8 16 . 24 72 71 9 8 105 Largest 2 | 2 2 2 2 2 2 2 2 2 2 2 2 . 2 2 2 2 2 2 Hottest 138 | 60 60 90 125 95 138 138 71 92 71 92 92 . 97 109 114 100 100 100 Shots Fired 972 | 10 50 56 106 44 26 52 26 33 11 9 32 . 43 137 122 18 14 183 Gun 738 | 10 50 56 82 37 . 22 16 21 3 1 16 . 24 86 99 18 14 183 Cannon 201 | . . . 24 . 26 30 10 12 4 5 16 . 16 51 7 . . . Launcher 20 | . . . . 7 . . . . 4 3 . . 3 . 3 . . . Special 13 | . . . . . . . . . . . . . . . 13 . . . Kinetic 578 | 5 35 10 29 . . 22 26 21 6 1 16 . 24 130 97 9 8 139 Thermal 26 | . . . 24 . . . . . . . . . . . 2 . . . Explosive 20 | . . . . 7 . . . . 4 3 . . 3 . 3 . . . Electromagnetic 335 | 5 15 46 53 37 26 30 . 12 1 5 16 . 16 7 7 9 6 44 Robot Hit Streak 17 | 6 8 8 15 17 4 10 9 14 3 7 9 . 13 13 14 4 3 10 Robot Miss Streak 6 | 1 2 6 4 2 3 4 2 2 1 . 1 . 3 4 2 3 1 5 Penetration Max 1 | . . . . . . . . . . . . . . 1 1 . 1 1 Secondary Targets 18 | . . 4 3 . . . . 1 . . . . 1 . 1 1 . 7 Max Gunslinging Chain 1 | . . 1 1 . . . . 1 . . . . 1 . 1 1 . 1 Shots Hit Robots 653 | 8 31 39 72 31 16 33 19 27 7 6 22 . 27 102 87 9 9 108 Core Hits 301 | 3 10 21 40 20 8 10 6 8 7 6 12 . 13 44 34 3 8 48 Critical Hits 29 | . 2 . 1 . . 2 . . . . . . . 3 8 1 . 12 Critical Kills 12 | . 1 . 1 . . . . . . . . . . 3 3 . . 4 Critical Parts Destroyed 16 | . 1 . . . . 2 . . . . . . . . 4 1 . 8 Melee Attacks 51 | . . . 7 . . 2 3 1 6 . . . . 22 2 . . 8 Impact . | . . . . . . . . . . . . . . . . . . . Slashing 51 | . . . 7 . . 2 3 1 6 . . . . 22 2 . . 8 Piercing . | . . . . . . . . . . . . . . . . . . . Sneak Attacks 5 | . . . . . . . . . 1 . . . . 4 . . . . Combat Hostiles . | . . . . . . . . . . . . . . . . . . . Follow-up Attacks . | . . . . . . . . . . . . . . . . . . . Damage Inflicted 17911 | 107 424 497 1695 1122 790 861 400 498 523 342 464 . 1051 3250 2234 243 235 3175 Guns 10669 | 107 424 472 769 494 . 258 213 241 56 15 85 . 265 1653 1972 243 235 3167 Cannons 3914 | . . . 431 . 508 603 187 257 38 134 379 . 356 924 97 . . . Explosions 2639 | . . 25 495 628 282 . . . 283 193 . . 430 138 165 . . . Melee 681 | . . . . . . . . . 146 . . . . 535 . . . . Ramming 8 | . . . . . . . . . . . . . . . . . . 8 Kinetic 9068 | 50 302 63 224 . . 258 400 241 94 15 85 . 265 2430 1949 103 156 2433 Thermal 1713 | . . 25 926 319 282 . . . . . . . . 138 23 . . . Explosive 1380 | . . . . 309 . . . . 283 193 . . 430 . 165 . . . Electromagnetic 5061 | 57 122 409 545 494 508 603 . 257 . 134 379 . 356 147 97 140 79 734 Impact . | . . . . . . . . . . . . . . . . . . . Slashing 681 | . . . . . . . . . 146 . . . . 535 . . . . Piercing . | . . . . . . . . . . . . . . . . . . . Highest Corruption 12 | . . 3 . . 1 1 1 4 1 1 1 1 1 8 12 12 12 3 Average Corruption 4 | . . 3 . . 1 1 1 1 1 1 1 1 1 5 11 12 12 2 Corruption Purged 3 | . . . . . . . . . . . . . . . . . . 3 Effects 225 | . . 4 . . . 3 6 3 6 4 4 . 1 73 96 14 8 3 Message Errors 48 | . . 2 . . . 1 1 1 5 1 3 . 1 13 13 2 5 . Matter Fused 44 | . . 2 . . . . . 1 . . . . . 16 20 4 1 . Heat Flow Errors 14 | . . . . . . . . . . . . . . 8 4 2 . . Energy Discharges 22 | . . . . . . . 2 . 1 . 1 . . 9 6 2 1 . Parts Rejected 3 | . . . . . . . . . . . . . . 1 2 . . . Data Loss (minor) 31 | . . . . . . 2 3 1 . 3 . . . 10 9 1 . 2 Data Loss (major) 6 | . . . . . . . . . . . . . . 3 3 . . . Misfires 6 | . . . . . . . . . . . . . . . 6 . . . Alerts 6 | . . . . . . . . . . . . . . . 5 . 1 . Misdirections 10 | . . . . . . . . . . . . . . . 9 1 . . Targeting Errors 33 | . . . . . . . . . . . . . . 11 19 2 . 1 Weapon Failures 2 | . . . . . . . . . . . . . . 2 . . . . Overload Shots . | . . . . . . . . . . . . . . . . . . . Overflow Damage 512 | . . 5 86 28 . 37 . . 185 17 1 . 39 107 7 . . . Projectiles 119 | . . . 5 . . 37 . . 21 17 1 . 38 . . . . . Explosions 151 | . . 5 81 28 . . . . 28 . . . 1 1 7 . . . Melee 242 | . . . . . . . . . 136 . . . . 106 . . . . Knockbacks 6 | . . . . . . . 2 . 1 . . . . 2 . . . 1 Impact 1 | . . . . . . . . . . . . . . . . . . 1 Kinetic 5 | . . . . . . . 2 . 1 . . . . 2 . . . . Secondary . | . . . . . . . . . . . . . . . . . . . Self-Inflicted Damage 182 | . . . 114 . 38 . . . . . . . 11 . 19 . . . Shots 6 | . . . 3 . 1 . . . . . . . 1 . 1 . . . Rammed 1 | . . . . . . . . . . . . . . . . . . 1 Targets Rammed 1 | . . . . . . . . . . . . . . . . . . 1 Kicked . | . . . . . . . . . . . . . . . . . . . Crushed . | . . . . . . . . . . . . . . . . . . . Highest Temperature 346 | . 84 124 284 159 207 315 57 263 36 36 139 . 243 310 253 269 144 346 Average Temperature 70 | . 36 41 82 50 76 92 26 104 14 16 50 . 98 67 48 62 56 106 Received Heat Transfer 1714 | . 204 162 216 180 9 186 15 54 27 18 54 . 12 207 258 . 4 108 Effects 6 | . . . 3 . . . . 2 . . . . . . . . . 1 Energy Bleed 1 | . . . . . . . . . . . . . . . . . . 1 Interference 5 | . . . 3 . . . . 2 . . . . . . . . . . Siege Activations 2 | . . . . . . . . . . . . . . . . . . 2 Total Turns 42 | . . . . . . . . . . . . . . . . . . 42 Longest Duration 30 | . . . . . . . . . . . . . . . . . . 30 Robots Corrupted 7 | . . . . 2 1 2 . . . . . . . . . . . 2 Combat Hostiles 1 | . . . . . . 1 . . . . . . . . . . . . Parts Fried 21 | . . 2 . . 4 5 . . . 1 1 . 3 . . . . 5 Impact Corruptions . | . . . . . . . . . . . . . . . . . . . Robots Melted . | . . . . . . . . . . . . . . . . . . . Combat Hostiles . | . . . . . . . . . . . . . . . . . . . Parts Melted 2 | . . . 1 . . . . 1 . . . . . . . . . . Heat Transferred 2145 | . . 50 1324 274 360 . . . . . . . . 100 37 . . . Parts Sabotaged 4 | . . . . . . . . . . . . . . . . . . 4 Parts Stolen . | . . . . . . . . . . . . . . . . . . . Parts Stripped . | . . . . . . . . . . . . . . . . . . . Power Chain Reactions 13 | . . 1 4 3 4 . . . . . . . . 1 . . . . Missiles Intercepted . | . . . . . . . . . . . . . . . . . . . Alert | -11 -10 -9 -8 -8 -8 -7 -7 -7 -6 -6 -6 -6 -5 -5 -5 -5 -5 -4 ------- Run | Scr Mat Mat Mat Gar Mat Fac Low Low Fac Low Low Dat Pro Fac Ext Cet Arc Fac Peak Influence 1519 | 10 329 456 444 853 697 436 . . 440 . . . . 431 667 534 185 1519 Average Influence 279 | 6 150 260 161 645 524 331 . . 141 . . . . 187 204 338 160 518 Maximum Alert Level 4 | . 1 2 2 3 2 2 . . 2 . . . . 2 2 2 . 4 Low Security (%) 48 | 100 64 33 65 . . . . . 71 . . . . 69 67 32 100 31 Level 1 24 | . 35 39 32 4 . 66 . . 18 . . . . 20 13 23 . 13 Level 2 22 | . . 27 2 46 100 33 . . 9 . . . . 10 18 43 . 34 Level 3 3 | . . . . 49 . . . . . . . . . . . . . 7 Level 4 1 | . . . . . . . . . . . . . . . . . . 12 Level 5 . | . . . . . . . . . . . . . . . . . . . High Security . | . . . . . . . . . . . . . . . . . . . Max Security . | . . . . . . . . . . . . . . . . . . . Squads Dispatched 35 | . 3 2 5 . . 3 . . 1 . 1 . . 9 2 . . 9 Investigation 7 | . 1 1 2 . . . . . . . . . . 1 . . . 2 Extermination 9 | . . . . . . 2 . . 1 . . . . 3 . . . 3 Reinforcement 16 | . 2 1 3 . . 1 . . . . . . . 4 2 . . 3 Assault 2 | . . . . . . . . . . . 1 . . . . . . 1 Garrison 1 | . . . . . . . . . . . . . . 1 . . . . Intercept . | . . . . . . . . . . . . . . . . . . . Construction Impeded 5 | . . . 1 . . 1 . . . . . . . 1 2 . . . Haulers Reinforced 3 | . . . . . . . . . . . . . . 2 . . . 1 Stealth | -11 -10 -9 -8 -8 -8 -7 -7 -7 -6 -6 -6 -6 -5 -5 -5 -5 -5 -4 --------- Run | Scr Mat Mat Mat Gar Mat Fac Low Low Fac Low Low Dat Pro Fac Ext Cet Arc Fac Distress Signals 22 | . . 4 5 . 1 1 . . . . . . . 5 2 1 . 3 Communications Jammed . | . . . . . . . . . . . . . . . . . . . Distress Signals . | . . . . . . . . . . . . . . . . . . . Times Spotted 339 | . 10 28 44 12 8 20 8 11 8 4 16 . 21 47 41 9 5 47 Peak Tracking Total 8 | . 3 7 6 6 3 3 3 5 3 3 6 . 5 7 8 5 2 8 Tactical Retreats 18 | . . . 1 . 3 3 . 2 . . 2 . 1 2 2 . . 2 Traps | -11 -10 -9 -8 -8 -8 -7 -7 -7 -6 -6 -6 -6 -5 -5 -5 -5 -5 -4 ------- Run | Scr Mat Mat Mat Gar Mat Fac Low Low Fac Low Low Dat Pro Fac Ext Cet Arc Fac Traps Triggered 9 | . . 1 . . . 3 . . 2 . . . . . 3 . . . Indirectly . | . . . . . . . . . . . . . . . . . . . Trap Hack Attempts . | . . . . . . . . . . . . . . . . . . . Triggered . | . . . . . . . . . . . . . . . . . . . Disarmed . | . . . . . . . . . . . . . . . . . . . Reprogrammed . | . . . . . . . . . . . . . . . . . . . Reused . | . . . . . . . . . . . . . . . . . . . Traps Extracted . | . . . . . . . . . . . . . . . . . . . Installed . | . . . . . . . . . . . . . . . . . . . Triggered 7 | . . . . . . . . 7 . . . . . . . . . . Machines | -11 -10 -9 -8 -8 -8 -7 -7 -7 -6 -6 -6 -6 -5 -5 -5 -5 -5 -4 ---------- Run | Scr Mat Mat Mat Gar Mat Fac Low Low Fac Low Low Dat Pro Fac Ext Cet Arc Fac Machines Disabled 62 | . 5 . 6 1 . 2 . . 1 . . . . 5 6 1 3 32 Max in Single Turn 4 | . 1 . 4 1 . 1 . . 1 . . . . 1 1 1 . 1 Garrison Access 4 | . . . . . . . . . 1 . . . . 3 . . . . Garrison Relay 1 | . . . . 1 . . . . . . . . . . . . . . Energy Cycler 1 | . . . . . . . . . . . . . . . 1 . . . Machines Sabotaged . | . . . . . . . . . . . . . . . . . . . Garrisons Compromised . | . . . . . . . . . . . . . . . . . . . Overloaded Fab Kills . | . . . . . . . . . . . . . . . . . . . Fab Network Shutdowns 2 | . . . . . . . . . 1 . . . . . . . . 1 Hacking | -11 -10 -9 -8 -8 -8 -7 -7 -7 -6 -6 -6 -6 -5 -5 -5 -5 -5 -4 --------- Run | Scr Mat Mat Mat Gar Mat Fac Low Low Fac Low Low Dat Pro Fac Ext Cet Arc Fac Machines Accessed 68 | . 3 7 13 . 2 5 . . 5 . . 4 1 12 3 3 . 10 Terminals 41 | . 1 7 10 . 2 1 . . 2 . . . 1 6 3 3 . 5 Fabricators 7 | . . . . . . 1 . . 2 . . . . 2 . . . 2 Repair Stations 3 | . . . . . . 2 . . . . . . . . . . . 1 Recycling Units 4 | . 2 . 1 . . 1 . . . . . . . . . . . . Scanalyzers 4 | . . . 1 . . . . . . . . . . 1 . . . 2 Garrison Access 5 | . . . 1 . . . . . 1 . . . . 3 . . . . Total Hacks 228 | . 5 15 41 . 8 13 . . 15 . . 27 2 36 17 15 . 34 Successful 173 | . 3 7 28 . 3 10 . . 13 . . 27 2 32 10 10 . 28 Failed 53 | . 2 8 12 . 5 3 . . 2 . . . . 3 7 5 . 6 Catastrophic 7 | . . 3 3 . . . . . . . . . . 1 . . . . Database Lockouts 3 | . . . 1 . . . . . . . . . . 2 . . . . Manual 107 | . 2 9 19 . 6 1 . . 8 . . . . 19 14 14 . 15 Terminals 148 | . 2 15 37 . 8 4 . . 9 . . . 2 22 17 15 . 17 Fabricators 22 | . . . . . . 2 . . 5 . . . . 9 . . . 6 Repair Stations 8 | . . . . . . 6 . . . . . . . . . . . 2 Recycling Units 5 | . 3 . 1 . . 1 . . . . . . . . . . . . Scanalyzers 13 | . . . 2 . . . . . . . . . . 2 . . . 9 Garrison Access 5 | . . . 1 . . . . . 1 . . . . 3 . . . . Terminal Hacks 102 | . . 5 22 . 1 2 . . 5 . . 27 2 15 5 8 . 10 Record 16 | . . . . . . . . . . . . 11 2 1 . . . 2 Part Schematic 19 | . . . 3 . . . . . 1 . . 8 . 2 1 4 . . Robot Schematic 5 | . . . . . . . . . . . . 5 . . . . . . Robot Analysis 1 | . . . . . . . . . . . . . . 1 . . . . Prototype ID Bank 10 | . . 1 4 . . . . . . . . 3 . 1 1 . . . Open Door 1 | . . . . . . . . . . . . . . . . 1 . . Branch Access Points 4 | . . . . . 1 1 . . 1 . . . . 1 . . . . Terminal Index 3 | . . . 1 . . . . . . . . . . 1 . . . 1 Fabricator Index 2 | . . . . . . . . . . . . . . 1 . . . 1 Alert Level 3 | . . . 3 . . . . . . . . . . . . . . . Unreport Threat 19 | . . 2 4 . . . . . 1 . . . . 5 1 3 . 3 Locate Traps 6 | . . 1 1 . . . . . 1 . . . . . 2 . . 1 Recall Investigation 2 | . . . 1 . . . . . . . . . . 1 . . . . Recall Extermination 1 | . . . . . . 1 . . . . . . . . . . . . Recall Reinforcements 2 | . . 1 1 . . . . . . . . . . . . . . . Hauler Manifests 3 | . . . 1 . . . . . . . . . . 1 . . . 1 Zone Layout 5 | . . . 3 . . . . . 1 . . . . . . . . 1 Fabricator Hacks 18 | . . . . . . 2 . . 5 . . . . 7 . . . 4 Load Schematic 9 | . . . . . . 1 . . 2 . . . . 4 . . . 2 Build 9 | . . . . . . 1 . . 3 . . . . 3 . . . 2 Repair Station Hacks 6 | . . . . . . 4 . . . . . . . . . . . 2 Scan Component 3 | . . . . . . 2 . . . . . . . . . . . 1 Repair 3 | . . . . . . 2 . . . . . . . . . . . 1 Recycling Unit Hacks 4 | . 2 . 1 . . 1 . . . . . . . . . . . . Retrieve Components 4 | . 2 . 1 . . 1 . . . . . . . . . . . . Scanalyzer 11 | . . . 2 . . . . . . . . . . 2 . . . 7 Insert Component 6 | . . . 1 . . . . . . . . . . 1 . . . 4 Analyze 5 | . . . 1 . . . . . . . . . . 1 . . . 3 Garrison Access Hacks 5 | . . . 1 . . . . . 1 . . . . 3 . . . . Unlock Access 1 | . . . 1 . . . . . . . . . . . . . . . Seal Access 4 | . . . . . . . . . 1 . . . . 3 . . . . Unauthorized Hacks 27 | . 1 2 2 . 2 1 . . 2 . . . . 5 5 2 . 5 Terminals 23 | . 1 2 2 . 2 1 . . 2 . . . . 3 5 2 . 3 Track 1 | . . . . . . . . . . . . . . . 1 . . . Assimilate 1 | . . . . . . . . . . . . . . 1 . . . . Botnet 18 | . 1 2 2 . 2 1 . . 2 . . . . 2 3 1 . 2 Disrupt 3 | . . . . . . . . . . . . . . . 1 1 . 1 Fabricators 4 | . . . . . . . . . . . . . . 2 . . . 2 Prioritize 1 | . . . . . . . . . . . . . . 1 . . . . Siphon 3 | . . . . . . . . . . . . . . 1 . . . 2 Repair Stations . | . . . . . . . . . . . . . . . . . . . Recycling Units . | . . . . . . . . . . . . . . . . . . . Scanalyzers . | . . . . . . . . . . . . . . . . . . . Garrison Access . | . . . . . . . . . . . . . . . . . . . Data Cores Recovered 2 | . . . . . 1 . . . . . . . . . . . . 1 Used 1 | . . . . . 1 . . . . . . . . . . . . . Hacking Detections 52 | . 2 7 12 . 2 3 . . 4 . . . 1 8 2 2 . 9 Full Trace Events 4 | . 1 1 . . . . . . . . . . . . . . . 2 Feedback Events 1 | . . . . . . . . . . . . . . . . . . 1 Corruption 1 | . . . . . . . . . . . . . . . . . . 1 Feedback Blocked . | . . . . . . . . . . . . . . . . . . . Robot Schematics Acquired 5 | . . . . . . . . . . . . 5 . . . . . . Robots Built . | . . . . . . . . . . . . . . . . . . . Matter . | . . . . . . . . . . . . . . . . . . . Time . | . . . . . . . . . . . . . . . . . . . Total Robot Build Rating . | . . . . . . . . . . . . . . . . . . . Part Schematics Acquired 23 | . . . 4 . . . . . 1 . . 8 . 3 1 4 . 2 Parts Built 7 | . . . . . . 1 . . 2 . . . . 3 . . . 1 Matter 1511 | . . . . . . 102 . . 380 . . . . 711 . . . 318 Time 807 | . . . . . . 25 . . 190 . . . . 380 . . . 212 Total Part Build Rating 32 | . . . . . . 1 . . 10 . . . . 15 . . . 6 Parts Repaired 3 | . . . . . . 2 . . . . . . . . . . . 1 Time 87 | . . . . . . 51 . . . . . . . . . . . 36 Parts Recycled . | . . . . . . . . . . . . . . . . . . . Recycled Matter . | . . . . . . . . . . . . . . . . . . . Retrieved Matter . | . . . . . . . . . . . . . . . . . . . Retrieved Components 6 | . 3 . 2 . . 1 . . . . . . . . . . . . Parts Scanalyzed 4 | . . . 1 . . . . . . . . . . 1 . . . 2 Part Schematics Acquired 4 | . . . 1 . . . . . . . . . . 1 . . . 2 Parts Damaged . | . . . . . . . . . . . . . . . . . . . Bothacking | -11 -10 -9 -8 -8 -8 -7 -7 -7 -6 -6 -6 -6 -5 -5 -5 -5 -5 -4 ------------ Run | Scr Mat Mat Mat Gar Mat Fac Low Low Fac Low Low Dat Pro Fac Ext Cet Arc Fac Used RIF Installer 1 | . . . . 1 . . . . . . . . . . . . . . Robots Hacked . | . . . . . . . . . . . . . . . . . . . Non-combat . | . . . . . . . . . . . . . . . . . . . Combat . | . . . . . . . . . . . . . . . . . . . Robot Hacks Applied . | . . . . . . . . . . . . . . . . . . . Relay Couplers Released 13 | . . . . 3 . . . . . . . . . 7 . . . 3 Machine Destruction 3 | . . . . 3 . . . . . . . . . . . . . . Programmers 10 | . . . . . . . . . . . . . . 7 . . . 3 Robots Rewired 26 | . . . . . . . . . . . 1 . . . 25 . . . Allies Hacked 1 | . . . . . . . . . . . . . . . 1 . . . Hacks Repelled 1 | . . . . . . . . . . . . . . . 1 . . . Allies | -11 -10 -9 -8 -8 -8 -7 -7 -7 -6 -6 -6 -6 -5 -5 -5 -5 -5 -4 -------- Run | Scr Mat Mat Mat Gar Mat Fac Low Low Fac Low Low Dat Pro Fac Ext Cet Arc Fac Total Allies 29 | . 1 . . . . . . . . . 1 . 1 1 25 . . . Largest Group 9 | . 1 1 1 1 1 1 1 1 1 1 2 1 2 2 9 8 2 1 Highest-Rated Group 388 | . 58 62 79 79 82 94 94 93 108 106 146 117 210 217 388 325 175 165 Highest-Rated Ally 165 | . 58 62 79 79 82 94 94 93 108 106 117 117 117 138 138 138 141 165 Total Orders 5 | . . . . . . . . . . . . . . 5 . . . . GOTO 3 | . . . . . . . . . . . . . . 3 . . . . FOLLOW 2 | . . . . . . . . . . . . . . 2 . . . . Ally Attacks 824 | . 13 51 67 22 17 46 22 27 8 5 24 . 45 114 200 28 16 119 Total Damage 27163 | . 470 712 1619 767 489 1392 645 1031 234 204 842 . 1168 5119 5635 770 526 5540 Kills 236 | . 4 19 20 5 8 14 4 6 4 2 6 . 17 32 37 9 2 47 Allies Corrupted . | . . . . . . . . . . . . . . . . . . . Allies Melted . | . . . . . . . . . . . . . . . . . . . Intel | -11 -10 -9 -8 -8 -8 -7 -7 -7 -6 -6 -6 -6 -5 -5 -5 -5 -5 -4 ------- Run | Scr Mat Mat Mat Gar Mat Fac Low Low Fac Low Low Dat Pro Fac Ext Cet Arc Fac Robot Analysis Total 1 | . . . . . . . . . . . . . . 1 . . . . Derelict Logs Recovered 5 | . . . . . . . 1 2 . . 1 . 1 . . . . . Drone Launches . | . . . . . . . . . . . . . . . . . . . Drone Recoveries . | . . . . . . . . . . . . . . . . . . . Exploration | -11 -10 -9 -8 -8 -8 -7 -7 -7 -6 -6 -6 -6 -5 -5 -5 -5 -5 -4 ------------- Run | Scr Mat Mat Mat Gar Mat Fac Low Low Fac Low Low Dat Pro Fac Ext Cet Arc Fac Turns Passed 17033 | 39 348 847 1470 585 555 1319 797 839 984 819 657 147 736 2948 1863 285 200 1595 Spaces Moved 8348 | 16 195 557 792 259 315 702 417 471 498 432 315 80 336 1326 757 125 97 658 Core 1 | . . . . . . 1 . . . . . . . . . . . . Treads 4855 | . . 5 . 196 . . . 30 498 432 315 80 336 1326 757 125 97 658 Legs 10 | 10 . . . . . . . . . . . . . . . . . . Wheels 3482 | 6 195 552 792 63 315 701 417 441 . . . . . . . . . . Hover . | . . . . . . . . . . . . . . . . . . . Flight . | . . . . . . . . . . . . . . . . . . . Fastest Speed 100 | 100 100 120 120 130 140 140 150 150 180 180 180 180 180 180 185 180 180 180 Average Speed 166 | 112 113 120 132 177 142 155 154 153 180 180 180 180 180 188 199 185 180 180 Slowest Speed 1500 | 120 120 210 140 190 150 1500 160 220 180 180 180 180 180 220 270 205 180 180 Overloaded Moves . | . . . . . . . . . . . . . . . . . . . Propulsion Burnouts . | . . . . . . . . . . . . . . . . . . . Robots Hopped . | . . . . . . . . . . . . . . . . . . . Cave-ins Triggered 1 | . . . . . . . . . 1 . . . . . . . . . Exploration Rate (%) 47 | 2 37 44 68 53 36 18 52 59 15 59 40 68 60 30 82 67 86 25 Regions Visited 18 Branch Regions 9 Pre-discovered Areas 2 | . . . . . . . 1 . . . . 1 . . . . . . Known Exits Taken 15 | . . 1 1 . 1 1 1 1 1 1 1 1 1 1 1 1 1 . Unknown Exits Taken 2 | 1 1 . . . . . . . . . . . . . . . . . Scrap Searched 5 | . . . . . . . 1 1 . 1 . . 2 . . . . . Spaces Dug 84 | . . . 10 2 . 2 3 1 5 25 . . 9 17 2 . . 8 Terrain Destroyed 277 | . . 7 52 29 18 2 7 1 13 25 . . 33 26 28 . 2 34 Melee 44 | . . . 6 . . 2 3 1 5 . . . . 17 2 . . 8 Projectile 49 | . . . 7 . . . 4 . 1 . . . . 4 5 . 2 26 AOE 184 | . . 7 39 29 18 . . . 7 25 . . 33 5 21 . . . Actions | -11 -10 -9 -8 -8 -8 -7 -7 -7 -6 -6 -6 -6 -5 -5 -5 -5 -5 -4 --------- Run | Scr Mat Mat Mat Gar Mat Fac Low Low Fac Low Low Dat Pro Fac Ext Cet Arc Fac Total 10414 | 26 270 684 1096 339 406 876 535 551 565 461 372 83 418 1604 993 164 110 861 Wait 851 | . 37 50 164 30 50 101 89 53 21 12 28 3 38 109 36 2 1 27 Move 8331 | 15 194 556 792 258 314 701 416 470 497 431 314 79 335 1325 756 124 96 658 Hop . | . . . . . . . . . . . . . . . . . . . Pick Up 131 | 1 3 22 19 1 10 13 1 1 7 1 1 . 1 10 20 7 2 11 Fast Attach 38 | 2 . 3 5 3 3 1 . . 3 . 2 . 1 6 1 4 . 4 Attach 55 | 1 2 5 5 . . 4 1 3 5 . 2 . 1 7 10 . . 9 Detach 12 | . . 2 1 . . . . . 2 . 1 . . 4 1 . . 1 Swap 211 | . 4 4 24 4 2 19 11 5 12 8 3 1 16 36 27 4 1 30 Drop 119 | 2 2 14 16 4 14 9 1 1 4 1 1 . 2 13 12 14 2 7 Fire 553 | 5 28 28 63 39 13 26 13 17 8 8 16 . 24 72 71 9 8 105 Melee 51 | . . . 7 . . 2 3 1 6 . . . . 22 2 . . 8 Ram . | . . . . . . . . . . . . . . . . . . . Kick . | . . . . . . . . . . . . . . . . . . . Crush 1 | . . . . . . . . . . . . . . . . . . 1 Escape Stasis 6 | . . . . . . . . . . . . . . . 6 . . . Rewire 55 | . . . . . . . . . . . 4 . . . 51 . . . Trap . | . . . . . . . . . . . . . . . . . . . Miscellaneous . | . . . . . . . . . . . . . . . . . . . Route ------- -11/Scrapyard -10/Materials (discovered 2 exits: *Mat / [*Min]) -9/Materials -8/Materials (discovered 3 exits: *Fac x2 / Gar) -8/Garrison (discovered 2 exits: *Mat x2) -8/Materials -7/Factory (discovered 2 exits: *Low x2) -7/Lower Caves -7/Lower Caves (discovered 2 exits: *Fac / *Zio) -6/Factory (discovered 3 exits: *Fac / *Low x2) -6/Lower Caves -6/Lower Caves -6/Data Miner -5/Proximity Caves -5/Factory (discovered 5 exits: *Fac / Upp x2 / *Ext x2) -5/Extension (discovered 3 exits: *Fac x2 / *Cet) -5/Cetus -5/Archives (discovered 3 exits: *Fac / *Hub x2) -4/Factory (discovered 2 exits: [*Res] / *Upp) History --------- Turn | Location | Event 1 | -11/Scrapyard | Discovered new exit (range 2) 40 | -11/Scrapyard | Entered Materials 131 | -10/Materials | Discovered new exit (range 14) 323 | -10/Materials | Build established: Mutant 342 | -10/Materials | Lost 3 parts (1p2w) 369 | -10/Materials | Discovered new exit (range 15) 388 | -10/Materials | Entered another Materials area 388 | -9/Materials | Accompanied by 1 ally 388 | -9/Materials | Evolved 2 slots: Utility x2 1124 | -9/Materials | Discovered new exit (range 3) 1128 | -9/Materials | Identified exit to Materials 1235 | -9/Materials | Entered another Materials area 1235 | -8/Materials | Accompanied by 1 ally 1235 | -8/Materials | Evolved 2 slots: Utility x2 1542 | -8/Materials | Central database locked down 1549 | -8/Materials | Build established: Hacker-Mutant 1606 | -8/Materials | Discovered new exit (range 9) 1615 | -8/Materials | Identified exit to Factory 1796 | -8/Materials | Discovered exit to Factory (range 18) 1850 | -8/Materials | Build established: Mutant 2377 | -8/Materials | Build established: Hacker-Mutant 2703 | -8/Materials | Identified exit to Garrison 2705 | -8/Materials | Entered Garrison 2705 | -8/Garrison | Accompanied by 1 ally 2818 | -8/Garrison | Triggered checkpoint 2900 | -8/Garrison | Discovered new exit (range 14) 2962 | -8/Garrison | Triggered checkpoint 3003 | -8/Garrison | Garrison Relay disabled 3062 | -8/Garrison | Triggered checkpoint 3225 | -8/Garrison | Discovered new exit (range 15) 3274 | -8/Garrison | Identified exit to Materials 3284 | -8/Garrison | Installed Relay Interface Framework 3290 | -8/Garrison | Entered Materials 3290 | -8/Materials | Accompanied by 1 ally 3565 | -8/Materials | Core integrity fell below 50% 3830 | -8/Materials | Discovered exit to Factory (range 7) 3845 | -8/Materials | Entered Factory 3845 | -7/Factory | Accompanied by 1 ally 3845 | -7/Factory | Evolved 2 slots: Utility x2 4190 | -7/Factory | Repaired Reactive Plating? 4311 | -7/Factory | Fabricated Hcp. Storage Unit (x1) 4555 | -7/Factory | Repaired Arm. Wheel? 4601 | -7/Factory | Identified exit to Lower Caves 5164 | -7/Factory | Entered Lower Caves 5164 | -7/Lower Caves | Accompanied by 1 ally 5589 | -7/Lower Caves | Encountered a Warlord checkpoint 5835 | -7/Lower Caves | Attracted the attention of an 0b10 checkpoint 5924 | -7/Lower Caves | Discovered new exit (range 3) 5927 | -7/Lower Caves | Identified exit to Lower Caves 5961 | -7/Lower Caves | Entered another Lower Caves area 5961 | -7/Lower Caves | Accompanied by 1 ally 6097 | -7/Lower Caves | Learned Factory terminal intel 6183 | -7/Lower Caves | Learned Factory security intel 6327 | -7/Lower Caves | Encountered a Warlord checkpoint 6327 | -7/Lower Caves | Discovered new exit (range 5) 6341 | -7/Lower Caves | Identified exit to Zion 6665 | -7/Lower Caves | Core integrity fell below 50% 6754 | -7/Lower Caves | Discovered new exit (range 10) 6770 | -7/Lower Caves | Identified exit to Factory 6800 | -7/Lower Caves | Entered Factory 6800 | -6/Factory | Accompanied by 1 ally 6800 | -6/Factory | Evolved 2 slots: Utility x2 6802 | -6/Factory | Loaded intel: 20 terminal locations 6979 | -6/Factory | Crushed by falling debris 7261 | -6/Factory | Discovered new exit (range 5) 7268 | -6/Factory | Identified exit to Factory 7287 | -6/Factory | Identified exit to Lower Caves 7501 | -6/Factory | Local fabrication network quarantined 7512 | -6/Factory | Fabricated Imp. Hacking Suite? 7553 | -6/Factory | Fabricated Imp. Hacking Suite (x1) 7784 | -6/Factory | Entered Lower Caves 7784 | -6/Lower Caves | Accompanied by 1 ally 8042 | -6/Lower Caves | Encountered a Warlord checkpoint 8282 | -6/Lower Caves | Attracted the attention of an 0b10 checkpoint 8538 | -6/Lower Caves | Discovered new exit (range 11) 8601 | -6/Lower Caves | Identified exit to Lower Caves 8603 | -6/Lower Caves | Entered another Lower Caves area 8603 | -6/Lower Caves | Accompanied by 1 ally 8830 | -6/Lower Caves | Learned Factory stockpile data 8896 | -6/Lower Caves | Attracted the attention of an 0b10 outpost 9134 | -6/Lower Caves | Attracted the attention of an 0b10 checkpoint 9210 | -6/Lower Caves | Discovered new exit (range 7) 9222 | -6/Lower Caves | Identified exit to Data Miner 9260 | -6/Lower Caves | Entered Data Miner 9260 | -6/Data Miner | Accompanied by 1 ally 9260 | -6/Data Miner | Discovered new exit (range 6) 9268 | -6/Data Miner | Identified exit to Proximity Caves 9295 | -6/Data Miner | Met Data Miner 9325 | -6/Data Miner | Learned location of Section 7 (-2) 9325 | -6/Data Miner | Acquired the access code to Warlord's prototype stash 9358 | -6/Data Miner | Received God Mode back door access code from Data Miner 9407 | -6/Data Miner | Entered Proximity Caves 9407 | -5/Proximity Caves | Accompanied by 1 ally 9571 | -5/Proximity Caves | Escorted by Enhanced Grunt 10018 | -5/Proximity Caves | Core integrity fell below 50% 10110 | -5/Proximity Caves | Discovered exit to Factory (range 16) 10117 | -5/Proximity Caves | Learned Factory trap positions 10143 | -5/Proximity Caves | Entered Factory 10143 | -5/Factory | Accompanied by 2 allies 10143 | -5/Factory | Evolved 2 slots: Utility x2 10144 | -5/Factory | Loaded intel: 131 trap records 10378 | -5/Factory | Identified exit to Upper Caves 10378 | -5/Factory | Identified exit to Extension 10643 | -5/Factory | Build established: Wizard-Mutant 10874 | -5/Factory | Spotted B-75 Beast 10930 | -5/Factory | Destroyed B-75 Beast 11277 | -5/Factory | Discovered new exit (range 15) 11342 | -5/Factory | Identified exit to Factory 11904 | -5/Factory | Central database locked down 12115 | -5/Factory | Garrison activated, responded to threat 12166 | -5/Factory | Fabricated Exp. Sensor Array? 12173 | -5/Factory | Core integrity fell below 50% 12509 | -5/Factory | Fabricated Exp. Signal Interpreter? 12829 | -5/Factory | Fabricated Lgt. Regenerative Plating? 13091 | -5/Factory | Entered Extension 13091 | -5/Extension | Accompanied by 1 ally 13103 | -5/Extension | Rescued a captive Derelict 13115 | -5/Extension | Rescued a captive Derelict 13250 | -5/Extension | System corruption reached 10% 13515 | -5/Extension | Build established: Hacker-Mutant 14204 | -5/Extension | Spotted B-75 Beast 14218 | -5/Extension | Spotted B-75 Beast 14252 | -5/Extension | Destroyed B-75 Beast 14259 | -5/Extension | Allies destroyed B-75 Beast 14274 | -5/Extension | Discovered exit to Factory (range 14) 14436 | -5/Extension | Core integrity fell below 20% 14466 | -5/Extension | Disrupted transfer network 14483 | -5/Extension | Lost 3 parts (1n1u1w) 14910 | -5/Extension | Discovered exit to Factory (range 10) 14912 | -5/Extension | Discovered new exit (range 6) 14922 | -5/Extension | Identified exit to Cetus 14954 | -5/Extension | Entered Cetus 14954 | -5/Cetus | Accompanied by 8 allies 14987 | -5/Cetus | Spotted Cetus Guard 14987 | -5/Cetus | Spotted Cetus Guard 14992 | -5/Cetus | Spotted Cetus Guard 14995 | -5/Cetus | Spotted Cetus Guard 15006 | -5/Cetus | Allies destroyed Cetus Guard 15007 | -5/Cetus | Allies destroyed Cetus Guard 15014 | -5/Cetus | Allies destroyed Cetus Guard 15211 | -5/Cetus | Discovered new exit (range 16) 15237 | -5/Cetus | Identified exit to Archives 15239 | -5/Cetus | Entered Archives 15239 | -5/Archives | Accompanied by 2 allies 15307 | -5/Archives | Discovered new exit (range 16) 15318 | -5/Archives | Discovered new exit (range 16) 15370 | -5/Archives | Identified exit to Hub_04(d) 15410 | -5/Archives | Discovered exit to Factory (range 16) 15439 | -5/Archives | Entered Factory 15439 | -4/Factory | Accompanied by 1 ally 15439 | -4/Factory | Evolved 2 slots: Utility x2 15823 | -4/Factory | Discovered new exit (range 14) 16166 | -4/Factory | Repaired Centrium Medium Armor Plating? 16425 | -4/Factory | Found Prototype Processor 16480 | -4/Factory | Identified Exp. Melee Analysis Suite 16610 | -4/Factory | Discovered new exit (range 8) 16640 | -4/Factory | Identified exit to Upper Caves 16720 | -4/Factory | First assault squad dispatched 16769 | -4/Factory | Fabricated Adv. Hacking Suite? 16835 | -4/Factory | Local fabrication network quarantined 16851 | -4/Factory | Core integrity fell below 50% 16972 | -4/Factory | Incoming investigation squad redirected 17025 | -4/Factory | Core integrity fell below 20% 17034 | -4/Factory | Core destroyed Last Messages --------------- 17007_ Penetrated by Slug. 17007_ Slug penetrates Wall. 17007_ U-05 Engineer lays Concrete. 17007_ U-05 Engineer builds a Door. 17008_ U-05 Engineer lays Concrete. 17009_ Slug penetrates H-77 Assassin. 17010_ U-05 Engineer lays Concrete. 17012_ Slug penetrates H-77 Assassin. 17012_ H-77 Assassin suffers critical hit. 17012_ H-77 Assassin destroyed. 17012_ Slug penetrates U-05 Engineer. 17012_ U-05 Engineer destroyed. 17012_ U-05 Engineer lays Concrete. 17020_ Ended siege mode. 17020_ U-05 Engineer lays Concrete. 17023_ Acquired 27 matter. 17023_ U-05 Engineer builds a Wall. 17024_ U-05 Engineer lays Concrete. 17027_ U-05 Engineer builds a Wall. 17027_ U-05 Engineer lays Concrete. Map ----- +----------------------------------------------------+ | ?????????# ############## #????????? | | ?????????# # #????????? | | ?????????# # ???????????? | | ?????????### ### """" ??????????? | | ?????+?????# ### ""F" ??????????? | | ?????# ????" #?# ??????????? | | ?????# ??# #?# ??????????? | | ?????# ### #?# """" """" """????????????? | | ?????# =# # #?# """" """"????????????????? | | ?##### [### ### """" """?????????????????? | | ?? # ! *%= """" ""??????????????????? | | ?? #= % = % """" "??????????????????? | | ???" #!! == %%% " """?????????????????? | | ???" /%/!%%%[%%%% ????????????????? | | ?????#/! %!%%%%"% ???????????????? | | ??"??# !*%!=*%%% ???????????????? | | ? "" #% %%%%%%%%!=############## ???????????????? | | ?? + %%=!*=%*%=# """"" !!????????????????????? | | ????### %%%[!/!%| # """"" !????????????????? ??? | | ????# " %%**%=!!!# """ ?????????????????? ?? | | ?????## %%%% % %!%# ??????###########? ?? | | ?????#"! %% %=k [# !???????# ## ? | | ?????## %% %%###+########## ? | | " % | | "%% %%% % % "" = | | ""%%""% % @ T | | """ """ !%% | | """ = ] | | ?""" ##;;;;####+### | | ???" #############! ; ! | # ####+###? | | ????????????###???## ; ! "#####+#####???????? | | ???????????????????#; = "#?? ??????????? | | ???????????????? "" ; ! "# ????????? | | ????????????????""S "# ??????? | | ????????????????"" % # #????? | | ??????????????? ! "# #????? | | ??????????????? %%| "# #????? | | ??????????????? ! " !=! # #????? | | ???????????????####""# "# #????? | | ??????????????????#### "# #????? | | ??????????????????? + "# #????? | | ???????????????????### # #????? | | ?????????????????????#!!= # #????? | | ???????????????????? #!!= = #######+#####?????? | | ?????????????????????#!!= ???????^??????????? | | ???????????????????????###"####???????^??????????? | | ?????????????????????????# ???????????^??????????? | | ?????????????????????????# ???????????^??????????? | | ?????????????????????????# ???????????^??????????? | | ??????????????????????????????????????^??????????? | +----------------------------------------------------+ Best States ------------- Heat Dissipation 74 Energy Generation 25 Energy Capacity 350 Matter Stores 300 Matter Capacity 300 Sight Range 16 Robot Scan Range 30 Terrain Scan Density 10 Armor Coverage 2100 Resistance: KI 20 Resistance: TH 25 Resistance: EM 20 Evasion (%) 40 Recoil Reduction 2 Offensive Hacking 66 Defensive Hacking 11 Item Schematics ----------------- Hcp. Storage Unit | -8/Materials | Hacked Arm. Wheel | -8/Materials | Hacked Adv. Sensor Array | -8/Materials | Hacked Hacking Suite | -8/Materials | Scanalyzed Imp. Hacking Suite | -6/Factory | Hacked Combat Drone Bay | -6/Data Miner | Free Lgt. Regenerative Plating | -6/Data Miner | Free Exp. Flexi-carbon Leg | -6/Data Miner | Free Cmb. Gravmag System | -6/Data Miner | Free Triangulator | -6/Data Miner | Free Tactical Coordination Suite | -6/Data Miner | Free Exp. ECM Suite | -6/Data Miner | Free Cloaking Device | -6/Data Miner | Free Exp. Sensor Array | -5/Factory | Hacked Lgt. Antimatter Reactor | -5/Factory | Scanalyzed Exp. Signal Interpreter | -5/Factory | Hacked Adv. Hacking Suite | -5/Extension | Hacked Exp. Terrain Scanner | -5/Cetus | Hacked Exp. Targeting Computer | -5/Cetus | Hacked Exp. Propulsion Shielding | -5/Cetus | Hacked Exp. Weapon Shielding | -5/Cetus | Hacked Centrium Heavy Treads | -4/Factory | Scanalyzed Centrium Medium Armor Plating | -4/Factory | Scanalyzed Robot Schematics ------------------ S-27 Virus | -6/Data Miner | Free G-50 Soldier | -6/Data Miner | Free L-41 Fighter | -6/Data Miner | Free P-70 Sage | -6/Data Miner | Free I-36 Angel | -6/Data Miner | Free Fabricated ------------ Hcp. Storage Unit | x1 | -7/Factory Imp. Hacking Suite | x1 | -6/Factory Imp. Hacking Suite | x1 | -6/Factory Exp. Sensor Array | x1 | -5/Factory Exp. Signal Interpreter | x1 | -5/Factory Lgt. Regenerative Plating | x1 | -5/Factory Adv. Hacking Suite | x1 | -4/Factory Alien Tech Used ----------------- None Achievements -------------- None Challenges ------------ None Player 2 | -11 -10 -9 -8 -8 -8 -7 -7 -7 -6 -6 -6 -6 -5 -5 -5 -5 -5 -4 ---------- Run | Scr Mat Mat Mat Gar Mat Fac Low Low Fac Low Low Dat Pro Fac Ext Cet Arc Fac Slots Evolved 12 | . 2 2 . . 2 . . 2 . . . . 2 . . . 2 . Power 2 | . . . . . 1 . . 1 . . . . . . . . . . Propulsion 3 | . 1 . . . . . . 1 . . . . . . . . 1 . Utility 6 | . 1 2 . . 1 . . . . . . . 2 . . . . . Weapon 1 | . . . . . . . . . . . . . . . . . 1 . Parts Attached 282 | . 10 15 20 3 7 12 4 2 15 . 18 . 23 77 35 5 2 34 Parts Lost 114 | . 2 2 . 1 . 1 4 . 3 . 9 . 9 37 10 2 . 34 Damage Taken 17743 | . 137 543 590 98 216 667 579 120 188 29 1050 . 1021 4161 1812 494 145 5893 Core 2528 | . 62 45 67 . 35 150 48 . 11 7 164 . 92 421 233 65 14 1114 Player 2/Cogmind (%) 71 | . 79 24 35 . 70 57 82 . 16 100 72 . 51 74 75 67 100 96 Absorbed by Shields 820 | . . . 132 24 42 60 159 12 9 15 6 . . . . 64 116 181 Damage Inflicted 23448 | . 470 712 1619 767 489 1392 645 1031 234 204 703 . 549 4981 3045 606 461 5540 Player 2/Cogmind (%) 56 | . 52 58 48 40 38 61 61 67 30 37 60 . 34 60 57 71 66 63 Combat Hostiles Destroyed 154 | . 4 14 15 5 5 11 4 6 4 2 5 . 9 24 15 2 2 27 Player 2/Cogmind (%) 57 | . 50 70 50 35 71 64 50 60 66 50 41 . 52 61 57 50 50 64 Game ------ Seed AssembledRefineryCoupler Manual? 0 Play Time 05:23:31 Cumulative 752.9 hours Start 2020.04.19 @ 07:37:26 End 2020.04.20 @ 20:52:59 Sessions 16 Manual Loads 0 Difficulty Rogue Special Mode AFD2020/Player2 Game No. 229 Rogue 229 Adventurer 0 Explorer 0 Win Type - Total 26 Types 19/1/3/3/0/0/0 Lore% 68 Gallery% 85 Achievement% 68 Wizard Run 0 Options --------- ASCII 0 Keyboard 1 Movement Numpad Keybinds 0 Fullscreen 1 Font 24/Smallcaps Map View 76x50 Tactical HUD 1 Map Filters NONE Filters NONE Steam 1 RUN: dccbd772-f6bf-4e0e-8aaa-74f8ff9262a0